fUSD/lending_fUSD_20240329
["ID","MTS","AMOUNT","RATE_DAILY","PERIOD"]
[320947252,1711720293205,-1584.51,0.000528,7]
[320947253,1711720293216,-1584.51,0.000528,7]
[320947254,1711720293226,-1584.51,0.000528,7]
[320947255,1711720293237,-2946.22817031,0.000528,60]
[320947256,1711720293248,-230.4,0.00052822,120]
[320947257,1711720293259,-151.0,0.00052849,120]
[320947258,1711720293269,-983.0,0.0005285,15]
[320947259,1711720293279,-150.5,0.0005285,15]
[320947260,1711720293290,-200.0,0.0005285,15]
[320947261,1711720293301,-150.5,0.0005286,15]
[320947262,1711720293312,-983.0,0.0005286,15]
[320947263,1711720293323,-200.0,0.0005286,15]
[320947264,1711720293334,-983.0,0.0005287,15]
[320947265,1711720293344,-150.5,0.0005287,15]
[320947266,1711720293354,-200.0,0.0005287,15]
[320947267,1711720293366,-183.31,0.00052871,120]
[320947268,1711720293376,-500.0,0.00052876,120]
[320947269,1711720293388,-170.01,0.00052876,120]
[320947270,1711720293399,-240.36,0.00052876,120]
[320947271,1711720293412,-500.0,0.00052876,120]
[320947272,1711720293425,-396.6,0.00052876,120]
[320947273,1711720293436,-407.76,0.00052876,120]
[320947274,1711720293447,-223.72,0.00052876,120]
[320947275,1711720293457,-500.0,0.00052876,120]
[320947276,1711720293468,-500.0,0.00052876,120]
[320947277,1711720293479,-150.0,0.00052876,120]
[320947278,1711720293491,-867.0,0.00052876,120]
[320947279,1711720293501,-500.0,0.00052876,120]
[320947280,1711720293512,-627.18,0.00052876,120]
[320947281,1711720293523,-640.85,0.00052876,120]
[320947282,1711720293533,-714.94,0.00052876,120]
[320947283,1711720293543,-161.4,0.00052876,120]
[320947284,1711720293554,-538.01,0.00052876,120]
[320947285,1711720293564,-1007.7,0.00052876,120]
[320947286,1711720293573,-686.37,0.00052876,120]
[320947287,1711720293584,-228.72,0.00052876,120]
[320947288,1711720293594,-982.95,0.00052876,120]
[320947289,1711720293605,-500.0,0.00052876,120]
[320947290,1711720293615,-500.0,0.00052876,120]
[320947291,1711720293625,-322.96,0.00052876,120]
[320947292,1711720293635,-500.0,0.00052876,120]
[320947293,1711720293646,-774.88,0.00052876,120]
[320947294,1711720293657,-500.0,0.00052876,120]
[320947295,1711720293668,-679.79,0.00052876,120]
[320947296,1711720293677,-500.0,0.00052876,120]
[320947297,1711720293686,-500.0,0.00052876,120]
[320947298,1711720293696,-853.69,0.00052876,120]
[320947299,1711720293705,-896.8,0.00052876,120]
[320947300,1711720293715,-786.23,0.00052876,120]
[320947301,1711720293724,-522.53,0.00052876,120]
[320947302,1711720293735,-399.72,0.00052876,120]
[320947303,1711720293745,-594.23,0.00052876,120]
[320947304,1711720293755,-9880.52,0.00052876,120]
[320947305,1711720293764,-1749.42,0.00052876,120]
[320947306,1711720293775,-500.0,0.00052876,120]
[320947307,1711720293785,-573.33,0.00052876,120]
[320947308,1711720293796,-512.31,0.00052876,120]
[320947309,1711720293806,-500.0,0.00052876,120]
[320947310,1711720293817,-500.0,0.00052876,120]
[320947311,1711720293828,-545.68,0.00052876,120]
[320947312,1711720293838,-500.0,0.00052876,120]
[320947313,1711720293849,-500.0,0.00052876,120]
[320947314,1711720293859,-1990.61,0.00052876,120]
[320947315,1711720293870,-500.0,0.00052876,120]
[320947316,1711720293880,-500.0,0.00052876,120]
[320947317,1711720293890,-500.0,0.00052876,120]
[320947318,1711720293900,-1229.22,0.00052876,120]
[320947319,1711720293909,-817.16,0.00052876,120]
[320947320,1711720293921,-190.4,0.00052876,120]
[320947321,1711720293931,-500.0,0.00052876,120]
[320947322,1711720293941,-500.0,0.00052876,120]
[320947323,1711720293950,-553.19,0.00052876,120]
[320947324,1711720293960,-770.3,0.00052876,120]
[320947325,1711720293970,-4469.38,0.00052876,120]
[320947326,1711720293981,-456.28,0.00052876,120]
[320947327,1711720293992,-679.26,0.00052876,120]
[320947328,1711720294003,-713.39,0.00052876,120]
[320947329,1711720294014,-885.4,0.00052876,120]
[320947330,1711720294024,-500.0,0.00052876,120]
[320947331,1711720294035,-1238.51,0.00052876,120]
[320947332,1711720294045,-1635.01,0.00052876,120]
[320947333,1711720294056,-576.18,0.00052876,120]
[320947334,1711720294068,-855.16,0.00052876,120]
[320947335,1711720294079,-500.0,0.00052876,120]
[320947336,1711720294090,-531.08,0.00052876,120]
[320947337,1711720294101,-500.0,0.00052876,120]
[320947338,1711720294111,-500.0,0.00052876,120]
[320947339,1711720294121,-534.13,0.00052876,120]
[320947340,1711720294131,-6532.1,0.00052876,120]
[320947341,1711720294141,-523.64,0.00052876,120]
[320947342,1711720294152,-560.66,0.00052876,120]
[320947343,1711720294163,-502.42,0.00052876,120]
[320947344,1711720294175,-723.57,0.00052876,120]
[320947345,1711720294185,-1682.83,0.00052876,120]
[320947346,1711720294197,-638.67,0.00052876,120]
[320947347,1711720294206,-503.68,0.00052876,120]
[320947348,1711720294218,-1618.73,0.00052876,120]
[320947349,1711720294230,-3551.69,0.00052876,120]
[320947350,1711720294240,-500.0,0.00052876,120]
[320947351,1711720294249,-1902.79,0.00052876,120]
[320947352,1711720294260,-500.0,0.00052876,120]
[320947353,1711720294270,-523.06,0.00052876,120]
[320947354,1711720294281,-783.41,0.00052876,120]
[320947355,1711720294291,-1110.8,0.00052876,120]
[320947356,1711720294301,-500.0,0.00052876,120]
[320947357,1711720294311,-500.0,0.00052876,120]
[320947358,1711720294320,-516.74,0.00052876,120]
[320947359,1711720294329,-500.0,0.00052876,120]
[320947360,1711720294339,-728.83,0.00052876,21]
[320947361,1711720294348,-1108.05,0.00052876,120]
[320947362,1711720294357,-988.84,0.00052876,120]
[320947363,1711720294367,-500.0,0.00052876,120]
[320947364,1711720294376,-627.93,0.00052876,120]
[320947365,1711720294387,-500.0,0.00052876,120]
[320947366,1711720294396,-500.0,0.00052876,120]
[320947367,1711720294407,-743.49,0.00052876,120]
[320947368,1711720294418,-1845.14,0.00052876,120]
[320947369,1711720294430,-826.94,0.00052876,120]
[320947370,1711720294439,-838.3,0.00052876,120]
[320947371,1711720294449,-679.1,0.00052876,120]
[320947372,1711720294458,-2055.89,0.00052876,120]
[320947373,1711720294469,-617.83,0.00052876,120]
[320947374,1711720294479,-1240.17,0.00052876,120]
[320947375,1711720294489,-500.0,0.00052876,120]
[320947376,1711720294499,-663.18,0.00052876,120]
[320947377,1711720294508,-500.0,0.00052876,120]
[320947378,1711720294518,-1451.79,0.00052876,120]
[320947379,1711720294527,-295.36,0.00052876,120]
[320947380,1711720294536,-500.0,0.00052876,120]
[320947381,1711720294546,-500.0,0.00052876,2]
[320947382,1711720294555,-500.0,0.00052876,120]
[320947383,1711720294566,-630.00781982,0.0005288,120]
[320947384,1711720294575,-630.00781982,0.0005288,120]
[320947385,1711720294585,-630.00781982,0.0005288,120]
[320947386,1711720294594,-630.00781982,0.0005288,120]
[320947387,1711720294604,-630.00781982,0.0005288,120]
[320947388,1711720294614,-630.00781982,0.0005288,120]
[320947389,1711720294624,-630.00781982,0.0005288,120]
[320947390,1711720294634,-630.00781982,0.0005288,120]
[320947391,1711720294644,-630.00781982,0.0005288,120]
[320947392,1711720294654,-630.00781982,0.0005288,120]
[320947393,1711720294663,-630.00781982,0.0005288,120]
[320947394,1711720294676,-630.00781982,0.0005288,120]
[320947395,1711720294685,-630.00781982,0.0005288,120]
[320947396,1711720294695,-630.00781982,0.0005288,120]
[320947397,1711720294704,-630.00781982,0.0005288,120]
[320947398,1711720294714,-630.00781982,0.0005288,120]
[320947399,1711720294724,-630.00781982,0.0005288,120]
[320947400,1711720294733,-630.00781982,0.0005288,120]
[320947401,1711720294743,-630.00781982,0.0005288,120]
[320947402,1711720294752,-630.5,0.0005288,120]
[320947403,1711720294761,-394.55738793,0.0005288,120]
[320947404,1711720294881,-394.55738793,0.0005288,120]
[320947405,1711720294891,-394.55738793,0.0005288,120]
[320947406,1711720294901,-394.55738793,0.0005288,120]
[320947407,1711720294912,-394.55738793,0.0005288,120]
[320947408,1711720294924,-394.55738793,0.0005288,120]
[320947409,1711720294935,-394.55738793,0.0005288,120]
[320947410,1711720294945,-394.55738793,0.0005288,120]
[320947411,1711720294955,-394.55738793,0.0005288,120]
[320947412,1711720294965,-394.55738793,0.0005288,120]
[320947413,1711720294976,-394.55738793,0.0005288,120]
[320947414,1711720294986,-394.55738793,0.0005288,120]
[320947415,1711720294996,-394.55738793,0.0005288,120]
[320947416,1711720295007,-394.55738793,0.0005288,120]
[320947417,1711720295017,-394.55738793,0.0005288,120]
[320947418,1711720295028,-394.55738793,0.0005288,120]
[320947419,1711720295038,-394.55738793,0.0005288,120]
[320947420,1711720295049,-394.55738793,0.0005288,120]
[320947421,1711720295059,-394.55738793,0.0005288,120]
[320947422,1711720295069,-395.05,0.0005288,120]
[320947423,1711720295080,-160.53593819,0.0005288,120]
[320947424,1711720295091,-160.53593819,0.0005288,120]
[320947425,1711720295101,-160.53593819,0.0005288,120]
[320947426,1711720295112,-160.53593819,0.0005288,120]
[320947427,1711720295123,-160.53593819,0.0005288,120]
[320947428,1711720295133,-160.53593819,0.0005288,120]
[320947429,1711720295144,-160.53593819,0.0005288,120]
[320947430,1711720295155,-160.53593819,0.0005288,120]
[320947431,1711720295169,-160.53593819,0.0005288,120]
[320947432,1711720295180,-160.53593819,0.0005288,120]
[320947433,1711720295191,-160.53593819,0.0005288,120]
[320947434,1711720295202,-160.53593819,0.0005288,120]
[320947435,1711720295212,-160.53593819,0.0005288,120]
[320947436,1711720295222,-160.53593819,0.0005288,120]
[320947437,1711720295233,-160.53593819,0.0005288,120]
[320947438,1711720295244,-160.53593819,0.0005288,120]
[320947439,1711720295255,-176.04,0.000529,14]
[320947440,1711720295266,-242.9,0.000529,30]
[320947441,1711720295277,-523.0,0.000529,40]
[320947442,1711720295288,-2092487.70894275,0.000529,22]
[320947443,1711720295300,-400.0,0.000529,19]
[320947444,1711720295311,-398.265206,0.000529,2]
[320947445,1711720295322,-17598.0,0.000529,120]
[320947446,1711720295333,-1262.57,0.00052987,120]
[320947447,1711720295344,-500.0,0.00053039,120]
[320947448,1711720295356,-500.0,0.00053039,120]
[320947449,1711720295366,-500.0,0.00053039,120]
[320947450,1711720295377,-1137.41,0.00053039,120]
[320947451,1711720295391,-435.25019769,0.00053039,120]
[320947452,1711720295402,-500.0,0.00053039,120]
[320947453,1711720295413,-500.0,0.00053039,120]
[320947454,1711720295427,-500.0,0.00053039,120]
[320947455,1711720295437,-500.0,0.00053039,120]
[320947456,1711720295448,-500.0,0.00053039,120]
[320947457,1711720295458,-500.0,0.00053039,120]
[320947458,1711720295470,-333.02272416,0.00053039,120]
[320947459,1711720295481,-500.0,0.00053039,120]
[320947460,1711720295492,-500.0,0.00053039,120]
[320947461,1711720295502,-338.75246969,0.00053039,120]
[320947462,1711720295513,-500.0,0.00053039,120]
[320947463,1711720295524,-500.0,0.00053039,120]
[320947464,1711720295535,-637.90495068,0.00053039,120]
[320947465,1711720295545,-459.820203,0.00053039,120]
[320947466,1711720295556,-500.0,0.00053039,2]
[320947467,1711720295567,-500.0,0.00053048,120]
[320947468,1711720295577,-500.0,0.00053048,120]
[320947469,1711720295588,-500.0,0.00053048,120]
[320947470,1711720295598,-500.0,0.00053048,120]
[320947471,1711720295610,-508.99,0.00053048,120]
[320947472,1711720295620,-500.0,0.00053048,120]
[320947473,1711720295631,-185.53650916,0.00053048,120]
[320947474,1711720295641,-500.0,0.00053048,120]
[320947475,1711720295652,-1003.04,0.000531,2]
[320947476,1711720295663,-500.0,0.0005315,120]
[320947477,1711720295675,-500.0,0.0005315,120]
[320947478,1711720295685,-500.0,0.0005315,120]
[320947479,1711720295696,-222.36,0.0005315,120]
[320947480,1711720295706,-150.0,0.0005315,120]
[320947481,1711720295716,-867.0,0.0005315,120]
[320947482,1711720295726,-500.0,0.0005315,120]
[320947483,1711720295737,-627.18,0.0005315,120]
[320947484,1711720295748,-714.94,0.0005315,120]
[320947485,1711720295759,-538.01,0.0005315,120]
[320947486,1711720295770,-1007.7,0.0005315,120]
[320947487,1711720295781,-686.37,0.0005315,120]
[320947488,1711720295791,-982.95,0.0005315,120]
[320947489,1711720295802,-500.0,0.0005315,120]
[320947490,1711720295812,-500.0,0.0005315,120]
[320947491,1711720295822,-500.0,0.0005315,120]
[320947492,1711720295832,-774.88,0.0005315,120]
[320947493,1711720295843,-500.0,0.0005315,120]
[320947494,1711720295854,-679.79,0.0005315,120]
[320947495,1711720295865,-500.0,0.0005315,120]
[320947496,1711720295875,-500.0,0.0005315,120]
[320947497,1711720295885,-853.69,0.0005315,120]
[320947498,1711720295895,-896.8,0.0005315,120]
[320947499,1711720295905,-786.23,0.0005315,120]
[320947500,1711720295916,-522.53,0.0005315,120]
[320947501,1711720295926,-594.23,0.0005315,120]
[320947502,1711720295936,-9880.52,0.0005315,120]
[320947503,1711720295946,-1749.42,0.0005315,120]
[320947504,1711720295958,-500.0,0.0005315,120]
[320947505,1711720295969,-573.33,0.0005315,120]
[320947506,1711720295979,-512.31,0.0005315,120]
[320947507,1711720295989,-500.0,0.0005315,120]
[320947508,1711720296000,-500.0,0.0005315,120]
[320947509,1711720296012,-545.68,0.0005315,120]
[320947510,1711720296022,-500.0,0.0005315,120]
[320947511,1711720296033,-500.0,0.0005315,120]
[320947512,1711720296043,-1990.61,0.0005315,120]
[320947513,1711720296057,-500.0,0.0005315,120]
[320947514,1711720296068,-500.0,0.0005315,120]
[320947515,1711720296079,-500.0,0.0005315,120]
[320947516,1711720296090,-817.16,0.0005315,120]
[320947517,1711720296101,-1229.22,0.0005315,120]
[320947518,1711720296111,-500.0,0.0005315,120]
[320947519,1711720296122,-500.0,0.0005315,120]
[320947520,1711720296132,-553.19,0.0005315,120]
[320947521,1711720296143,-770.3,0.0005315,120]
[320947522,1711720296155,-4469.38,0.0005315,120]
[320947523,1711720296166,-679.26,0.0005315,120]
[320947524,1711720296178,-713.39,0.0005315,120]
[320947525,1711720296188,-885.4,0.0005315,120]
[320947526,1711720296200,-500.0,0.0005315,120]
[320947527,1711720296211,-1238.51,0.0005315,120]
[320947528,1711720296222,-1635.01,0.0005315,120]
[320947529,1711720296233,-576.18,0.0005315,120]
[320947530,1711720296244,-855.16,0.0005315,120]
[320947531,1711720296255,-500.0,0.0005315,120]
[320947532,1711720296266,-531.08,0.0005315,120]
[320947533,1711720296277,-281.39,0.0005315,120]
[320947534,1711720296288,-500.0,0.0005315,120]
[320947535,1711720296299,-534.13,0.0005315,120]
[320947536,1711720296310,-6532.1,0.0005315,120]
[320947537,1711720296321,-523.64,0.0005315,120]
[320947538,1711720296333,-560.66,0.0005315,120]
[320947539,1711720296343,-723.57,0.0005315,120]
[320947540,1711720296355,-502.42,0.0005315,120]
[320947541,1711720296366,-1682.83,0.0005315,120]
[320947542,1711720296379,-638.67,0.0005315,120]
[320947543,1711720296390,-503.68,0.0005315,120]
[320947544,1711720296402,-1618.73,0.0005315,120]
[320947545,1711720296416,-3551.69,0.0005315,120]
[320947546,1711720296427,-500.0,0.0005315,120]
[320947547,1711720296438,-1902.79,0.0005315,120]
[320947548,1711720296449,-500.0,0.0005315,120]
[320947549,1711720296460,-523.06,0.0005315,120]
[320947550,1711720296470,-783.41,0.0005315,120]
[320947551,1711720296481,-1110.8,0.0005315,120]
[320947552,1711720296492,-500.0,0.0005315,120]
[320947553,1711720296502,-500.0,0.0005315,120]
[320947554,1711720296513,-516.74,0.0005315,120]
[320947555,1711720296523,-500.0,0.0005315,120]
[320947556,1711720296533,-728.83,0.0005315,21]
[320947557,1711720296543,-1108.05,0.0005315,120]
[320947558,1711720296553,-988.84,0.0005315,120]
[320947559,1711720296564,-500.0,0.0005315,120]
[320947560,1711720296574,-627.93,0.0005315,120]
[320947561,1711720296585,-500.0,0.0005315,120]
[320947562,1711720296595,-500.0,0.0005315,120]
[320947563,1711720296606,-743.49,0.0005315,120]
[320947564,1711720296616,-1845.14,0.0005315,120]
[320947565,1711720296626,-826.94,0.0005315,120]
[320947566,1711720296636,-838.3,0.0005315,120]
[320947567,1711720296646,-679.1,0.0005315,120]
[320947568,1711720296656,-2055.89,0.0005315,120]
[320947569,1711720296668,-617.83,0.0005315,120]
[320947570,1711720296678,-1240.17,0.0005315,120]
[320947571,1711720296689,-374.29,0.0005315,120]
[320947572,1711720296699,-663.18,0.0005315,120]
[320947573,1711720296711,-500.0,0.0005315,120]
[320947574,1711720296721,-1451.79,0.0005315,120]
[320947575,1711720296731,-500.0,0.0005315,120]
[320947576,1711720296742,-500.0,0.0005315,2]
[320947577,1711720296753,-168.93,0.00053179,2]
[320947578,1711720296763,-3115.0,0.000532,14]
[320947579,1711720296773,-150.0,0.00053276,14]
[320947580,1711720296784,-150.0,0.00053276,14]
[320947581,1711720296794,-150.0,0.00053276,14]
[320947582,1711720296805,-500.0,0.00053313,120]
[320947583,1711720296816,-537.3971664,0.00053313,120]
[320947584,1711720296826,-500.0,0.00053313,120]
[320947585,1711720296837,-1137.41,0.00053313,120]
[320947586,1711720296848,-500.0,0.00053313,120]
[320947587,1711720296858,-500.0,0.00053313,120]
[320947588,1711720296869,-500.0,0.00053313,120]
[320947589,1711720296880,-530.92707635,0.00053313,120]
[320947590,1711720296890,-500.0,0.00053313,120]
[320947591,1711720296900,-500.0,0.00053313,120]
[320947592,1711720296910,-500.0,0.00053313,120]
[320947593,1711720297045,-500.0,0.00053313,120]
[320947594,1711720297064,-500.0,0.00053313,120]
[320947595,1711720297075,-500.0,0.00053313,120]
[320947596,1711720297085,-500.0,0.00053313,2]
[320947597,1711720297095,-500.0,0.00053322,120]
[320947598,1711720297106,-409.76,0.00053322,120]
[320947599,1711720297117,-275.04,0.00053322,120]
[320947600,1711720297127,-500.0,0.00053322,120]
[320947601,1711720297138,-508.99,0.00053322,120]
[320947602,1711720297149,-500.0,0.00053322,120]
[320947603,1711720297159,-523.0,0.000534,40]
[320947604,1711720297173,-500.0,0.00053424,120]
[320947605,1711720297183,-370.7,0.00053424,120]
[320947606,1711720297194,-500.0,0.00053424,120]
[320947607,1711720297205,-150.0,0.00053424,120]
[320947608,1711720297215,-867.0,0.00053424,120]
[320947609,1711720297226,-500.0,0.00053424,120]
[320947610,1711720297236,-627.18,0.00053424,120]
[320947611,1711720297246,-714.94,0.00053424,120]
[320947612,1711720297258,-538.01,0.00053424,120]
[320947613,1711720297269,-1007.7,0.00053424,120]
[320947614,1711720297279,-686.37,0.00053424,120]
[320947615,1711720297290,-982.95,0.00053424,120]
[320947616,1711720297302,-500.0,0.00053424,120]
[320947617,1711720297312,-453.69,0.00053424,120]
[320947618,1711720297323,-477.74,0.00053424,120]
[320947619,1711720297335,-774.88,0.00053424,120]
[320947620,1711720297345,-178.17,0.00053424,120]
[320947621,1711720297357,-679.79,0.00053424,120]
[320947622,1711720297368,-500.0,0.00053424,120]
[320947623,1711720297380,-500.0,0.00053424,120]
[320947624,1711720297397,-853.69,0.00053424,120]
[320947625,1711720297407,-896.8,0.00053424,120]
[320947626,1711720297420,-786.23,0.00053424,120]
[320947627,1711720297431,-522.53,0.00053424,120]
[320947628,1711720297441,-594.23,0.00053424,120]
[320947629,1711720297451,-9880.52,0.00053424,120]
[320947630,1711720297462,-1749.42,0.00053424,120]
[320947631,1711720297474,-500.0,0.00053424,120]
[320947632,1711720297487,-573.33,0.00053424,120]
[320947633,1711720297497,-512.31,0.00053424,120]
[320947634,1711720297508,-500.0,0.00053424,120]
[320947635,1711720297519,-500.0,0.00053424,120]
[320947636,1711720297530,-545.68,0.00053424,120]
[320947637,1711720297542,-500.0,0.00053424,120]
[320947638,1711720297553,-500.0,0.00053424,120]
[320947639,1711720297564,-1990.61,0.00053424,120]
[320947640,1711720297575,-500.0,0.00053424,120]
[320947641,1711720297585,-500.0,0.00053424,120]
[320947642,1711720297595,-500.0,0.00053424,120]
[320947643,1711720297605,-817.16,0.00053424,120]
[320947644,1711720297615,-1229.22,0.00053424,120]
[320947645,1711720297626,-500.0,0.00053424,120]
[320947646,1711720297636,-421.21,0.00053424,120]
[320947647,1711720297647,-553.19,0.00053424,120]
[320947648,1711720297658,-770.3,0.00053424,120]
[320947649,1711720297672,-4469.38,0.00053424,120]
[320947650,1711720297683,-679.26,0.00053424,120]
[320947651,1711720297693,-713.39,0.00053424,120]
[320947652,1711720297704,-885.4,0.00053424,120]
[320947653,1711720297714,-617.76,0.00053424,120]
[320947654,1711720297724,-1238.51,0.00053424,120]
[320947655,1711720297735,-1635.01,0.00053424,120]
[320947656,1711720297745,-576.18,0.00053424,120]
[320947657,1711720297756,-855.16,0.00053424,120]
[320947658,1711720297767,-500.0,0.00053424,120]
[320947659,1711720297778,-531.08,0.00053424,120]
[320947660,1711720297788,-281.39,0.00053424,120]
[320947661,1711720297798,-534.13,0.00053424,120]
[320947662,1711720297808,-6532.1,0.00053424,120]
[320947663,1711720297818,-523.64,0.00053424,120]
[320947664,1711720297827,-560.66,0.00053424,120]
[320947665,1711720297837,-723.57,0.00053424,120]
[320947666,1711720297847,-502.42,0.00053424,120]
[320947667,1711720297856,-1682.83,0.00053424,120]
[320947668,1711720297866,-638.67,0.00053424,120]
[320947669,1711720297876,-503.68,0.00053424,120]
[320947670,1711720297887,-1618.73,0.00053424,120]
[320947671,1711720297897,-3551.69,0.00053424,120]
[320947672,1711720297908,-1046.84,0.00053424,120]
[320947673,1711720297921,-500.0,0.00053424,120]
[320947674,1711720297931,-1902.79,0.00053424,120]
[320947675,1711720297941,-500.0,0.00053424,120]
[320947676,1711720297952,-523.06,0.00053424,120]
[320947677,1711720297963,-783.41,0.00053424,120]
[320947678,1711720297974,-1110.8,0.00053424,120]
[320947679,1711720297984,-350.38,0.00053424,120]
[320947680,1711720297998,-500.0,0.00053424,120]
[320947681,1711720298022,-516.74,0.00053424,120]
[320947682,1711720298041,-500.0,0.00053424,120]
[320947683,1711720298062,-728.83,0.00053424,21]
[320947684,1711720298084,-1108.05,0.00053424,120]
[320947685,1711720298103,-988.84,0.00053424,120]
[320947686,1711720298122,-500.0,0.00053424,120]
[320947687,1711720298141,-500.0,0.00053424,120]
[320947688,1711720298167,-627.93,0.00053424,120]
[320947689,1711720298190,-500.0,0.00053424,120]
[320947690,1711720298208,-743.49,0.00053424,120]
[320947691,1711720298232,-1845.14,0.00053424,120]
[320947692,1711720298250,-826.94,0.00053424,120]
[320947693,1711720298266,-838.3,0.00053424,120]
[320947694,1711720298287,-679.1,0.00053424,120]
[320947695,1711720298304,-2055.89,0.00053424,120]
[320947696,1711720298324,-617.83,0.00053424,120]
[320947697,1711720298343,-1240.17,0.00053424,120]
[320947698,1711720298361,-663.18,0.00053424,120]
[320947699,1711720298379,-500.0,0.00053424,120]
[320947700,1711720298395,-1451.79,0.00053424,120]
[320947701,1711720298418,-500.0,0.00053424,120]
[320947702,1711720298437,-500.0,0.00053424,2]
[320947703,1711720298454,-230.4,0.00053425,120]
[320947704,1711720298469,-631.92,0.00053587,120]
[320947705,1711720298486,-500.0,0.00053587,120]
[320947706,1711720298502,-1137.41,0.00053587,120]
[320947707,1711720298518,-500.0,0.00053587,120]
[320947708,1711720298534,-500.0,0.00053587,120]
[320947709,1711720298550,-500.0,0.00053587,120]
[320947710,1711720298566,-500.0,0.00053587,120]
[320947711,1711720298583,-500.0,0.00053587,120]
[320947712,1711720298598,-500.0,0.00053587,120]
[320947713,1711720298616,-500.0,0.00053587,120]
[320947714,1711720298631,-500.0,0.00053587,120]
[320947715,1711720298648,-500.0,0.00053587,120]
[320947716,1711720298663,-500.0,0.00053587,2]
[320947717,1711720298680,-351.81,0.00053596,120]
[320947718,1711720298694,-500.0,0.00053596,120]
[320947719,1711720298709,-508.99,0.00053596,120]
[320947720,1711720298724,-500.0,0.00053596,120]
[320947721,1711720298740,-873.10746672,0.00053627,31]
[320947722,1711720298755,-500.0,0.00053698,120]
[320947723,1711720298771,-500.0,0.00053698,120]
[320947724,1711720298786,-150.0,0.00053698,120]
[320947725,1711720298801,-867.0,0.00053698,120]
[320947726,1711720298817,-500.0,0.00053698,120]
[320947727,1711720298833,-627.18,0.00053698,120]
[320947728,1711720298849,-714.94,0.00053698,120]
[320947729,1711720298866,-538.01,0.00053698,120]
[320947730,1711720298882,-1007.7,0.00053698,120]
[320947731,1711720298898,-686.37,0.00053698,120]
[320947732,1711720298915,-982.95,0.00053698,120]
[320947733,1711720298933,-500.0,0.00053698,120]
[320947734,1711720298948,-774.88,0.00053698,120]
[320947735,1711720298964,-679.79,0.00053698,120]
[320947736,1711720298979,-500.0,0.00053698,120]
[320947737,1711720298996,-500.0,0.00053698,120]
[320947738,1711720299011,-853.69,0.00053698,120]
[320947739,1711720299026,-896.8,0.00053698,120]
[320947740,1711720299042,-786.23,0.00053698,120]
[320947741,1711720299056,-522.53,0.00053698,120]
[320947742,1711720299071,-594.23,0.00053698,120]
[320947743,1711720299087,-9880.52,0.00053698,120]
[320947744,1711720299102,-1749.42,0.00053698,120]
[320947745,1711720299117,-500.0,0.00053698,120]
[320947746,1711720299132,-573.33,0.00053698,120]
[320947747,1711720299146,-512.31,0.00053698,120]
[320947748,1711720299160,-500.0,0.00053698,120]
[320947749,1711720299178,-500.0,0.00053698,120]
[320947750,1711720299193,-545.68,0.00053698,120]
[320947751,1711720299207,-500.0,0.00053698,120]